[Event "ONJK DE"]
[Site "Enschede, Netherlands"]
[Date "2022.08.12"]
[Round "11.1"]
[White "Groenewoud, Joel"]
[Black "Rooijakkers, Liam"]
[Result "1-0"]
[TimeControl "40min + 30sec/move"]
[WhiteElo "1497"]
[BlackElo "1266"]

1. e4 {[%clk 00:40:59]} e5 {[%clk 00:40:57]} {[%emt 00:00:04]} 2. Nf3 {[%clk
00:41:24]} {[%emt 00:00:05]} Nf6 {[%clk 00:41:23]} {[%emt 00:00:03]} 3. Nxe5
{[%clk 00:41:48]} {[%emt 00:00:06]} Nc6 {[%clk 00:41:49]} {[%emt 00:00:05]} 4.
Nxc6 {[%clk 00:42:03]} {[%emt 00:00:14]} dxc6 {[%clk 00:42:14]} {[%emt
00:00:05]} 5. d3 {[%clk 00:42:17]} {[%emt 00:00:16]} Bc5 {[%clk 00:42:39]}
{[%emt 00:00:05]} 6. Be2 {[%clk 00:42:40]} {[%emt 00:00:08]} h5 {[%clk
00:43:02]} {[%emt 00:00:06]} 7. c3 {[%clk 00:42:27]} {[%emt 00:00:44]} Bd6
{[%clk 00:42:50]} {[%emt 00:00:42]} 8. Nd2 {[%clk 00:40:08]} {[%emt 00:02:49]}
c5 {[%clk 00:41:42]} {[%emt 00:01:37]} 9. Nf3 {[%clk 00:39:52]} {[%emt
00:00:46]} Ng4 {[%clk 00:40:55]} {[%emt 00:01:16]} 10. d4 {[%clk 00:39:29]}
{[%emt 00:00:54]} cxd4 {[%clk 00:40:53]} {[%emt 00:00:32]} 11. cxd4 {[%clk
00:39:41]} {[%emt 00:00:18]} Bb4+ {[%clk 00:40:54]} {[%emt 00:00:29]} 12. Bd2
{[%clk 00:39:43]} {[%emt 00:00:29]} Qe7 {[%clk 00:40:10]} {[%emt 00:01:13]} 13.
Bxb4 {[%clk 00:39:27]} {[%emt 00:00:46]} Qxb4+ {[%clk 00:40:35]} {[%emt
00:00:06]} 14. Qd2 {[%emt 00:01:22]} Qxd2+ {[%clk 00:40:01]} {[%emt 00:00:01]}
15. Nxd2 {[%clk 00:39:40]} {[%emt 00:00:27]} Bd7 {[%clk 00:39:55]} {[%emt
00:00:35]} 16. h3 {[%clk 00:39:58]} {[%emt 00:00:13]} Nf6 {[%clk 00:40:16]}
{[%emt 00:00:07]} 17. O-O {[%clk 00:40:17]} {[%emt 00:00:13]} O-O-O {[%clk
00:40:30]} {[%emt 00:00:17]} 18. e5 {[%clk 00:40:18]} {[%emt 00:00:29]} Nd5
{[%clk 00:40:25]} {[%emt 00:00:33]} 19. Bc4 {[%clk 00:39:22]} {[%emt 00:01:26]}
Bc6 {[%clk 00:40:19]} {[%emt 00:00:33]} 20. Bxd5 {[%clk 00:38:49]} {[%emt
00:01:08]} Rxd5 {[%clk 00:40:21]} {[%emt 00:00:27]} 21. Nf3 {[%clk 00:38:40]}
{[%emt 00:00:39]} Rd7 {[%clk 00:40:33]} {[%emt 00:00:17]} 22. Ng5 {[%clk
00:31:36]} {[%emt 00:07:35]} f6 {[%clk 00:40:10]} {[%emt 00:00:54]} 23. Nf3
{[%clk 00:28:29]} {[%emt 00:03:37]} Bxf3 {[%clk 00:40:28]} {[%emt 00:00:11]} 24.
gxf3 {[%clk 00:28:24]} {[%emt 00:00:36]} Rxd4 {[%clk 00:40:39]} {[%emt
00:00:18]} 25. exf6 {[%clk 00:27:48]} {[%emt 00:01:07]} gxf6 {[%clk 00:40:59]}
{[%emt 00:00:10]} 26. Rad1 {[%clk 00:27:06]} {[%emt 00:01:11]} Rg8+ {[%clk
00:40:19]} {[%emt 00:01:01]} 27. Kh2 {[%clk 00:27:13]} {[%emt 00:00:32]} Rgd8
{[%clk 00:40:41]} {[%emt 00:00:08]} 28. Rxd4 {[%clk 00:26:13]} {[%emt
00:01:31]} Rxd4 {[%clk 00:41:03]} {[%emt 00:00:07]} 29. Kg3 {[%clk 00:25:26]}
{[%emt 00:01:17]} Rd2 {[%clk 00:40:24]} {[%emt 00:01:06]} 30. Kh4 {[%clk
00:24:33]} {[%emt 00:01:26]} Rd5 {[%clk 00:40:00]} {[%emt 00:00:54]} 31. Rg1
{[%clk 00:23:54]} {[%emt 00:01:09]} Rd8 {[%clk 00:37:17]} {[%emt 00:03:14]} 32.
Rg6 {[%clk 00:22:14]} {[%emt 00:02:10]} Rd2 {[%clk 00:35:03]} {[%emt 00:02:43]}
33. Rxf6 {[%clk 00:21:23]} {[%emt 00:01:21]} Rxb2 {[%clk 00:35:11]} {[%emt
00:00:21]} 34. Kxh5 {[%clk 00:20:47]} {[%emt 00:01:07]} Rxa2 {[%clk 00:34:27]}
{[%emt 00:01:14]} 35. h4 {[%clk 00:20:14]} {[%emt 00:01:03]} a5 {[%clk
00:32:46]} {[%emt 00:02:11]} 36. Kg6 {[%clk 00:18:14]} {[%emt 00:02:30]} Rxf2
{[%clk 00:32:40]} {[%emt 00:00:37]} 37. h5 {[%clk 00:17:53]} {[%emt 00:00:51]}
a4 {[%clk 00:30:44]} {[%emt 00:02:26]} 38. h6 {[%clk 00:17:51]} {[%emt
00:00:31]} Rg2+ {[%clk 00:29:51]} {[%emt 00:01:23]} 39. Kf5 {[%clk 00:09:27]}
{[%emt 00:08:54]} Rg8 {[%clk 00:27:45]} {[%emt 00:02:36]} 40. Rg6 {[%clk
00:04:05]} {[%emt 00:05:52]} Rh8 {[%clk 00:25:57]} {[%emt 00:02:18]} 41. Ke6
{[%clk 00:01:56]} {[%emt 00:02:39]} a3 {[%clk 00:25:19]} {[%emt 00:01:09]} 42.
h7 {[%clk 00:01:54]} {[%emt 00:00:31]} Re8+ {[%clk 00:24:56]} {[%emt 00:00:53]}
43. Kf7 {[%clk 00:01:33]} {[%emt 00:00:52]} a2 {[%clk 00:24:06]} {[%emt
00:01:19]} 44. Kxe8 {[%clk 00:00:53]} {[%emt 00:01:09]} a1=Q {[%clk 00:24:24]}
{[%emt 00:00:12]} 45. Rg8 {[%clk 00:01:17]} {[%emt 00:00:07]} Qf6 {[%clk
00:24:45]} {[%emt 00:00:09]} 46. h8=Q {[%emt 00:00:49]} Qe6 {[%clk 00:23:15]}
{[%emt 00:02:00]} 47. Kf8 {[%clk 00:01:19]} {[%emt 00:00:09]} Qd7 {[%clk
00:23:25]} {[%emt 00:00:18]} 48. Qg7 {[%clk 00:00:44]} {[%emt 00:01:06]} Qe6
{[%clk 00:23:16]} {[%emt 00:00:39]} 49. Qe7 {[%clk 00:00:40]} {[%emt 00:00:35]}
Qxe7 {[%clk 00:21:22]} {[%emt 00:02:24]} 50. Kxe7# {[%clk 00:01:06]} {[%emt
00:00:04]} 1-0

[Event "ONJK DE"]
[Site "Enschede, Netherlands"]
[Date "2022.08.12"]
[Round "11.2"]
[White "Gang, Kevin Wan Ze"]
[Black "Terlouw, Wouter"]
[Result "0-1"]
[TimeControl "40min + 30sec/move"]
[WhiteElo "1105"]
[BlackElo "1720"]

1. e4 {[%clk 00:40:57]} {[%emt 00:00:02]} c5 {[%clk 00:40:58]} {[%emt
00:00:03]} 2. d4 {[%clk 00:41:19]} {[%emt 00:00:07]} cxd4 {[%clk 00:41:25]}
{[%emt 00:00:04]} 3. c3 {[%clk 00:41:35]} {[%emt 00:00:14]} dxc3 {[%clk
00:41:50]} {[%emt 00:00:04]} 4. Nxc3 {[%clk 00:41:58]} {[%emt 00:00:07]} Nc6
{[%clk 00:42:16]} {[%emt 00:00:05]} 5. Nf3 {[%clk 00:42:17]} {[%emt 00:00:11]}
e6 {[%clk 00:42:39]} {[%emt 00:00:07]} 6. Bc4 {[%clk 00:42:38]} {[%emt
00:00:08]} a6 {[%clk 00:43:01]} {[%emt 00:00:09]} 7. a3 {[%clk 00:42:48]}
{[%emt 00:00:20]} Nge7 {[%clk 00:43:08]} {[%emt 00:00:23]} 8. Bf4 {[%clk
00:43:01]} {[%emt 00:00:17]} Ng6 {[%clk 00:43:14]} {[%emt 00:00:24]} 9. Bg3
{[%clk 00:43:19]} {[%emt 00:00:11]} b5 {[%clk 00:43:22]} {[%emt 00:00:22]} 10.
Bb3 {[%clk 00:43:28]} {[%emt 00:00:22]} Be7 {[%clk 00:43:24]} {[%emt 00:00:27]}
11. O-O {[%clk 00:43:41]} {[%emt 00:00:18]} O-O {[%clk 00:43:13]} {[%emt
00:00:41]} 12. Bd6 {[%clk 00:43:55]} {[%emt 00:00:15]} Bb7 {[%clk 00:42:33]}
{[%emt 00:01:10]} 13. Qd2 {[%clk 00:40:51]} {[%emt 00:03:34]} Bxd6 {[%clk
00:41:52]} {[%emt 00:01:12]} 14. Qxd6 {[%clk 00:41:10]} {[%emt 00:00:10]} Na5
{[%clk 00:40:52]} {[%emt 00:01:26]} 15. Ba2 {[%clk 00:41:07]} {[%emt 00:00:37]}
Bc6 {[%clk 00:40:00]} {[%emt 00:01:21]} 16. Rad1 {[%clk 00:41:18]} {[%emt
00:00:20]} Nb7 {[%clk 00:39:50]} {[%emt 00:00:38]} 17. Qd3 {[%clk 00:41:21]}
{[%emt 00:00:25]} Qe7 {[%clk 00:37:13]} {[%emt 00:02:55]} 18. Rfe1 {[%clk
00:41:25]} {[%emt 00:00:43]} d6 {[%clk 00:33:49]} {[%emt 00:03:55]} 19. e5
{[%clk 00:40:17]} {[%emt 00:01:38]} dxe5 {[%clk 00:32:38]} {[%emt 00:01:42]} 20.
Nxe5 {[%clk 00:40:19]} {[%emt 00:00:27]} Nxe5 {[%clk 00:32:28]} {[%emt
00:00:40]} 21. Rxe5 {[%clk 00:40:31]} {[%emt 00:00:18]} Rad8 {[%clk 00:32:07]}
{[%emt 00:00:50]} 22. Qe2 {[%clk 00:40:49]} {[%emt 00:00:11]} Rxd1+ {[%clk
00:31:39]} {[%emt 00:01:00]} 23. Qxd1 {[%clk 00:41:04]} {[%emt 00:00:14]} Rd8
{[%clk 00:31:40]} {[%emt 00:00:28]} 24. Qc2 {[%clk 00:41:08]} {[%emt 00:00:27]}
Qd6 {[%clk 00:30:39]} {[%emt 00:01:26]} 25. Re3 {[%clk 00:41:16]} {[%emt
00:00:27]} Nc5 {[%clk 00:28:20]} {[%emt 00:02:45]} 26. Bb1 {[%clk 00:40:28]}
{[%emt 00:01:22]} g6 {[%clk 00:28:18]} {[%emt 00:00:33]} 27. h3 {[%clk
00:40:22]} {[%emt 00:00:34]} Qd2 {[%clk 00:28:20]} {[%emt 00:00:24]} 28. Re2
{[%clk 00:40:27]} {[%emt 00:00:30]} Qxc2 {[%clk 00:28:08]} {[%emt 00:00:43]} 29.
Rxc2 {[%clk 00:40:41]} {[%emt 00:00:15]} Ne4 {[%clk 00:27:17]} {[%emt
00:01:18]} 30. Nxe4 {[%clk 00:40:11]} {[%emt 00:01:04]} Bxe4 {[%clk 00:27:40]}
{[%emt 00:00:07]} 31. Rc1 {[%clk 00:40:27]} {[%emt 00:00:14]} Bxb1 {[%clk
00:27:54]} {[%emt 00:00:16]} 32. Rxb1 {[%clk 00:40:40]} {[%emt 00:00:17]} Rd2
{[%clk 00:28:04]} {[%emt 00:00:17]} 33. Kf1 {[%clk 00:40:50]} {[%emt 00:00:23]}
Kg7 {[%clk 00:27:58]} {[%emt 00:00:35]} 34. Ke1 {[%clk 00:41:08]} {[%emt
00:00:11]} Rc2 {[%clk 00:28:15]} {[%emt 00:00:15]} 35. g3 {[%clk 00:41:14]}
{[%emt 00:00:24]} Kf6 {[%clk 00:28:22]} {[%emt 00:00:21]} 36. f3 {[%clk
00:41:36]} {[%emt 00:00:09]} Rh2 {[%clk 00:28:46]} {[%emt 00:00:07]} 37. h4
{[%clk 00:41:43]} {[%emt 00:00:23]} Rh1+ {[%clk 00:29:09]} {[%emt 00:00:07]}
0-1

[Event "ONJK DE"]
[Site "Enschede, Netherlands"]
[Date "2022.08.12"]
[Round "11.3"]
[White "Declerck, Adriaan"]
[Black "Decraene, Lotus"]
[Result "0-1"]
[TimeControl "40min + 30sec/move"]
[WhiteElo "1371"]
[BlackElo "1332"]

1. e4 {[%clk 00:40:38]} {[%emt 00:00:21]} c5 {[%clk 00:40:36]} {[%emt
00:00:25]} 2. Nc3 {[%clk 00:41:02]} {[%emt 00:00:05]} d6 {[%clk 00:41:00]}
{[%emt 00:00:05]} 3. f4 {[%clk 00:41:28]} {[%emt 00:00:04]} Nf6 {[%clk
00:41:02]} {[%emt 00:00:28]} 4. Nf3 {[%clk 00:41:49]} {[%emt 00:00:09]} a6
{[%clk 00:40:48]} {[%emt 00:00:45]} 5. a4 {[%clk 00:41:58]} {[%emt 00:00:20]}
e6 {[%clk 00:40:44]} {[%emt 00:00:34]} 6. g3 {[%clk 00:41:53]} {[%emt
00:00:34]} Be7 {[%clk 00:40:21]} {[%emt 00:00:54]} 7. Bg2 {[%clk 00:42:09]}
{[%emt 00:00:13]} O-O {[%clk 00:38:42]} {[%emt 00:02:10]} 8. h3 {[%clk
00:41:46]} {[%emt 00:00:53]} Nc6 {[%clk 00:35:29]} {[%emt 00:03:44]} 9. d3
{[%clk 00:40:15]} {[%emt 00:02:00]} Bd7 {[%clk 00:34:21]} {[%emt 00:02:09]} 10.
O-O {[%clk 00:40:40]} {[%emt 00:00:34]} Rb8 {[%clk 00:31:24]} {[%emt 00:03:27]}
11. g4 {[%clk 00:38:20]} {[%emt 00:02:51]} b5 {[%clk 00:30:44]} {[%emt
00:01:10]} 12. axb5 {[%clk 00:38:01]} {[%emt 00:00:49]} axb5 {[%clk 00:31:07]}
{[%emt 00:00:07]} 13. Ne2 {[%clk 00:32:43]} {[%emt 00:05:48]} Qc7 {[%clk
00:23:35]} {[%emt 00:08:02]} 14. c3 {[%clk 00:30:52]} {[%emt 00:02:21]} b4
{[%clk 00:22:08]} {[%emt 00:01:56]} 15. Qe1 {[%clk 00:29:26]} {[%emt 00:01:56]}
Qb6 {[%clk 00:22:06]} {[%emt 00:00:33]} 16. Kh1 {[%clk 00:28:43]} {[%emt
00:01:13]} Ra8 {[%emt 00:03:17]} 17. Rxa8 {[%clk 00:26:58]} {[%emt 00:02:13]}
Rxa8 {[%clk 00:19:49]} 18. Qg3 {[%emt 00:04:29]} Ra1 {[%clk 00:18:22]} 19. f5
{[%clk 00:22:56]} {[%emt 00:02:31]} e5 {[%clk 00:17:18]} {[%emt 00:01:34]} 20.
g5 {[%clk 00:22:35]} {[%emt 00:00:50]} Nh5 {[%clk 00:16:35]} {[%emt 00:01:13]}
21. Qh4 {[%clk 00:22:11]} {[%emt 00:00:55]} g6 {[%clk 00:16:38]} {[%emt
00:00:27]} 22. fxg6 {[%clk 00:19:50]} {[%emt 00:02:50]} hxg6 {[%clk 00:15:12]}
{[%emt 00:01:56]} 23. Ng3 {[%clk 00:19:32]} {[%emt 00:00:49]} Ng7 {[%clk
00:13:36]} {[%emt 00:02:05]} 24. Nd2 {[%clk 00:15:16]} {[%emt 00:04:46]} Qd8
{[%clk 00:11:58]} {[%emt 00:02:08]} 25. Nc4 {[%clk 00:15:15]} {[%emt 00:00:32]}
Rxc1 {[%clk 00:11:06]} {[%emt 00:01:22]} 26. Rxc1 {[%clk 00:14:56]} {[%emt
00:00:48]} Bxg5 {[%clk 00:10:42]} {[%emt 00:00:54]} 27. Nf5 {[%clk 00:15:05]}
{[%emt 00:00:21]} Bxh4 {[%clk 00:10:41]} {[%emt 00:00:31]} 28. Nh6+ {[%clk
00:07:02]} {[%emt 00:08:33]} Kf8 {[%clk 00:10:24]} {[%emt 00:00:41]} 29. Rf1
{[%clk 00:05:23]} {[%emt 00:02:16]} Be6 {[%clk 00:10:29]} {[%emt 00:00:24]} 30.
Ng4 {[%emt 00:05:26]} Bxg4 {[%clk 00:10:14]} {[%emt 00:00:41]} 0-1

[Event "ONJK DE"]
[Site "Enschede, Netherlands"]
[Date "2022.08.12"]
[Round "11.4"]
[White "Frederiks, Jesse"]
[Black "Dijkhuijsen, Thomas"]
[Result "1-0"]
[TimeControl "40min + 30sec/move"]
[WhiteElo "1302"]
[BlackElo "1306"]

1. d4 {[%clk 00:40:54]} {[%emt 00:00:05]} Nf6 {[%clk 00:40:58]} {[%emt
00:00:03]} 2. c4 {[%clk 00:41:16]} {[%emt 00:00:08]} g6 {[%clk 00:41:24]}
{[%emt 00:00:03]} 3. Nc3 {[%clk 00:41:29]} {[%emt 00:00:17]} d5 {[%clk
00:41:51]} {[%emt 00:00:04]} 4. Bf4 {[%clk 00:41:17]} {[%emt 00:00:41]} Bg7
{[%clk 00:41:45]} {[%emt 00:00:36]} 5. e3 {[%clk 00:41:28]} {[%emt 00:00:20]}
O-O {[%clk 00:41:45]} {[%emt 00:00:29]} 6. Nf3 {[%clk 00:41:23]} {[%emt
00:00:35]} Bf5 {[%clk 00:41:43]} {[%emt 00:00:32]} 7. Be2 {[%clk 00:40:33]}
{[%emt 00:01:20]} Nc6 {[%clk 00:40:41]} {[%emt 00:01:33]} 8. O-O {[%clk
00:39:40]} {[%emt 00:01:21]} Re8 {[%clk 00:38:04]} {[%emt 00:03:08]} 9. h3
{[%clk 00:37:21]} {[%emt 00:02:48]} Qd7 {[%clk 00:34:32]} {[%emt 00:04:03]} 10.
Bh2 {[%clk 00:33:29]} {[%emt 00:04:21]} a5 {[%clk 00:30:43]} {[%emt 00:04:20]}
11. Rc1 {[%clk 00:28:38]} {[%emt 00:05:20]} dxc4 {[%clk 00:25:25]} {[%emt
00:05:49]} 12. Bxc4 {[%clk 00:27:16]} {[%emt 00:01:51]} Ne4 {[%clk 00:25:32]}
{[%emt 00:00:25]} 13. Bd3 {[%clk 00:25:45]} {[%emt 00:02:00]} Nxc3 {[%clk
00:24:05]} {[%emt 00:01:57]} 14. Rxc3 {[%clk 00:24:58]} {[%emt 00:01:17]} Bxd3
{[%clk 00:23:46]} {[%emt 00:00:49]} 15. Qxd3 {[%clk 00:23:59]} {[%emt
00:01:28]} Nb4 {[%clk 00:21:01]} {[%emt 00:03:16]} 16. Qd2 {[%clk 00:23:29]}
{[%emt 00:00:59]} Nd5 {[%clk 00:20:59]} {[%emt 00:00:32]} 17. Rc2 {[%clk
00:22:54]} {[%emt 00:01:06]} c6 {[%clk 00:20:57]} {[%emt 00:00:32]} 18. a3
{[%clk 00:22:13]} {[%emt 00:01:11]} Nf6 {[%clk 00:18:52]} {[%emt 00:02:36]} 19.
Rfc1 {[%clk 00:19:41]} {[%emt 00:03:01]} Ne4 {[%clk 00:16:16]} {[%emt
00:03:05]} 20. Qd3 {[%clk 00:17:30]} {[%emt 00:02:36]} Qd5 {[%clk 00:15:52]}
{[%emt 00:01:00]} 21. Nd2 {[%clk 00:15:52]} {[%emt 00:02:06]} Nxd2 {[%clk
00:15:24]} {[%emt 00:01:01]} 22. Qxd2 {[%clk 00:16:06]} {[%emt 00:00:15]} Red8
{[%clk 00:14:41]} {[%emt 00:01:12]} 23. Rc5 {[%clk 00:15:34]} {[%emt 00:01:00]}
Qe6 {[%clk 00:14:04]} {[%emt 00:01:08]} 24. Rxa5 {[%clk 00:15:15]} {[%emt
00:00:51]} Qa2 {[%clk 00:12:37]} {[%emt 00:01:56]} 25. Rxa8 {[%clk 00:12:43]}
{[%emt 00:03:03]} Rxa8 {[%clk 00:12:59]} {[%emt 00:00:08]} 26. Qc2 {[%clk
00:12:40]} {[%emt 00:00:28]} Ra5 {[%clk 00:12:07]} {[%emt 00:01:26]} 27. Qc3
{[%clk 00:10:56]} {[%emt 00:02:04]} Rb5 {[%clk 00:10:51]} {[%emt 00:01:56]} 28.
b4 {[%clk 00:09:36]} {[%emt 00:01:50]} Rg5 {[%clk 00:08:45]} {[%emt 00:02:36]}
29. Bg3 {[%clk 00:08:44]} {[%emt 00:01:13]} Qe6 {[%clk 00:08:21]} {[%emt
00:01:04]} 30. Qc4 {[%clk 00:07:41]} {[%emt 00:01:31]} Qd7 {[%clk 00:06:26]}
{[%emt 00:02:23]} 31. a4 {[%clk 00:06:45]} {[%emt 00:01:31]} Qd8 {[%clk
00:05:56]} {[%emt 00:00:59]} 32. a5 {[%clk 00:05:46]} {[%emt 00:01:29]} Rb5
{[%clk 00:06:13]} {[%emt 00:00:11]} 33. Qc3 {[%clk 00:04:48]} {[%emt 00:01:30]}
Qa8 {[%clk 00:05:58]} {[%emt 00:00:44]} 34. Bc7 {[%clk 00:04:24]} {[%emt
00:00:54]} Qc8 {[%clk 00:05:50]} {[%emt 00:00:40]} 35. Bb6 {[%clk 00:04:44]}
{[%emt 00:00:10]} Qa8 {[%clk 00:06:17]} {[%emt 00:00:03]} 36. Qd2 {[%clk
00:04:05]} {[%emt 00:01:04]} Bh6 {[%clk 00:06:13]} {[%emt 00:00:38]} 37. Rc5
{[%clk 00:04:05]} {[%emt 00:00:30]} Rxc5 {[%clk 00:06:35]} {[%emt 00:00:08]} 38.
dxc5 {[%clk 00:04:27]} {[%emt 00:00:08]} Bg7 {[%clk 00:06:24]} {[%emt
00:00:41]} 39. Kf1 {[%clk 00:03:45]} {[%emt 00:01:12]} Kf8 {[%clk 00:06:52]}
{[%emt 00:00:02]} 40. Ke1 {[%clk 00:03:44]} {[%emt 00:00:28]} Ke8 {[%clk
00:06:52]} {[%emt 00:00:33]} 41. Kd1 {[%clk 00:03:56]} {[%emt 00:00:15]} Qc8
{[%clk 00:07:21]} {[%emt 00:00:04]} 42. Kc2 {[%clk 00:03:14]} {[%emt 00:01:12]}
Qd7 {[%clk 00:07:51]} 43. Qxd7+ {[%clk 00:03:07]} {[%emt 00:00:37]} Kxd7 {[%clk
00:08:12]} {[%emt 00:00:09]} 44. Kb3 {[%clk 00:03:24]} {[%emt 00:00:13]} Be5
{[%clk 00:07:55]} {[%emt 00:00:47]} 45. f4 {[%clk 00:03:17]} {[%emt 00:00:37]}
Bb8 {[%clk 00:08:04]} {[%emt 00:00:21]} 46. Ka4 {[%clk 00:03:18]} {[%emt
00:00:29]} e5 {[%clk 00:07:54]} {[%emt 00:00:40]} 47. g3 {[%clk 00:03:23]}
{[%emt 00:00:24]} h5 {[%clk 00:07:49]} {[%emt 00:00:36]} 48. h4 {[%clk
00:03:09]} {[%emt 00:00:44]} exf4 {[%clk 00:07:29]} {[%emt 00:00:49]} 49. exf4
{[%clk 00:03:28]} {[%emt 00:00:12]} Ke6 {[%clk 00:06:17]} {[%emt 00:01:43]} 50.
a6 {[%clk 00:03:25]} {[%emt 00:00:33]} bxa6 {[%clk 00:06:14]} {[%emt 00:00:32]}
51. Ka5 {[%clk 00:03:46]} {[%emt 00:00:09]} Kf5 {[%clk 00:04:26]} {[%emt
00:02:17]} 52. Kxa6 {[%clk 00:04:09]} {[%emt 00:00:08]} Kg4 {[%clk 00:04:15]}
{[%emt 00:00:40]} 53. Kb7 {[%clk 00:04:33]} {[%emt 00:00:06]} Kxg3 {[%clk
00:03:34]} {[%emt 00:01:12]} 54. Kxb8 {[%clk 00:04:38]} {[%emt 00:00:25]} Kxh4
{[%clk 00:03:54]} {[%emt 00:00:10]} 55. Kb7 {[%clk 00:05:00]} {[%emt 00:00:08]}
Kg3 {[%clk 00:03:40]} {[%emt 00:00:44]} 56. Bd8 {[%clk 00:05:14]} {[%emt
00:00:16]} Kxf4 {[%clk 00:03:30]} {[%emt 00:00:40]} 57. Kxc6 {[%clk 00:05:37]}
{[%emt 00:00:07]} g5 {[%clk 00:03:29]} {[%emt 00:00:31]} 58. Kd5 {[%clk
00:05:55]} {[%emt 00:00:12]} h4 {[%clk 00:03:35]} {[%emt 00:00:24]} 59. c6
{[%clk 00:06:13]} {[%emt 00:00:12]} h3 {[%clk 00:03:36]} {[%emt 00:00:29]} 60.
Bc7+ {[%clk 00:06:18]} {[%emt 00:00:26]} Kf3 {[%clk 00:03:38]} {[%emt
00:00:28]} 61. Bh2 {[%clk 00:06:42]} {[%emt 00:00:05]} g4 {[%clk 00:03:51]}
{[%emt 00:00:17]} 62. c7 {[%clk 00:07:04]} {[%emt 00:00:08]} g3 {[%clk
00:03:57]} {[%emt 00:00:23]} 63. c8=Q {[%emt 00:00:15]} f5 {[%clk 00:03:47]}
{[%emt 00:00:39]} 64. Qc3+ {[%clk 00:07:35]} {[%emt 00:00:14]} Ke2 {[%clk
00:03:51]} {[%emt 00:00:28]} 65. Qxg3 {[%clk 00:07:57]} {[%emt 00:00:07]} Kf1
{[%clk 00:04:03]} {[%emt 00:00:19]} 66. Qxh3+ {[%clk 00:08:21]} {[%emt
00:00:06]} Ke2 {[%clk 00:04:26]} {[%emt 00:00:07]} 67. Qxf5 {[%clk 00:08:43]}
{[%emt 00:00:08]} Ke3 {[%clk 00:04:47]} {[%emt 00:00:09]} 68. Qf4+ {[%clk
00:08:55]} {[%emt 00:00:18]} Ke2 {[%clk 00:05:09]} {[%emt 00:00:08]} 69. Qg3
{[%clk 00:09:05]} {[%emt 00:00:17]} Kf1 {[%clk 00:05:29]} {[%emt 00:00:13]} 70.
Ke4 {[%clk 00:09:17]} {[%emt 00:00:18]} Ke2 {[%clk 00:05:56]} {[%emt 00:00:03]}
71. Qe3+ {[%clk 00:09:21]} {[%emt 00:00:26]} Kf1 {[%clk 00:06:08]} {[%emt
00:00:19]} 72. Qf3+ {[%clk 00:09:44]} {[%emt 00:00:06]} Ke1 {[%clk 00:06:33]}
{[%emt 00:00:05]} 73. Qg2 {[%clk 00:09:58]} {[%emt 00:00:15]} Kd1 {[%clk
00:06:58]} {[%emt 00:00:07]} 74. Kd3 {[%clk 00:10:19]} {[%emt 00:00:08]} Ke1
{[%emt 00:00:02]} 75. Bg3+ {[%clk 00:10:19]} {[%emt 00:00:10]} Kd1 {[%clk
00:07:05]} {[%emt 00:00:17]} 76. Qg1# {[%clk 00:10:42]} {[%emt 00:00:06]} 1-0